Cogmind - Beta 15 @@@ ROGUE MODE // 2025.07.05 @ 21:43:08 Player: Carpathian Result: Destroyed by Y-45 Defender with Beam Rifle Performance ------------- Evolutions (2) 1000 Regions Visited (3) 600 Robots Destroyed (34) 170 Value Destroyed (1392) 1392 Prototype IDs (2) 40 Alien Tech Used (0) 0 Bonus (0) 0 TOTAL SCORE: 3202 Bonus ------- None Cogmind --------- Core Integrity 0/550 Matter 230/300 Energy 100/100 System Corruption 0% Temperature Cool (9) Movement Core (50) Location -8/Materials Parts ------- > --- POWER (2) -------- (None) > --- PROPULSION (4) --- (None) > --- UTILITY (3) ------ (None) > --- WEAPON (2) ------- (None) > --- INVENTORY (5) ---- Heat Sink Recoil Stabilizer Heavy EM Pulse Gun Light EM Pulse Cannon Gauss Cannon Peak State ------------ > --- POWER ------------ Ion Engine Light Nuclear Core > --- PROPULSION ------- Armored Treads Armored Treads Carbon-fiber Leg Carbon-fiber Leg > --- UTILITY ---------- Small Storage Unit Particle Charger Tractor Beam > --- WEAPON ----------- Particle Gun Heavy Assault Rifle > --- INVENTORY -------- Heat Sink Advanced Weight Redist. System Improved Light Armor Plating Gauss Cannon Gauss Cannon Gauss Cannon Gauss Cannon Shock Bomb Launcher [Rating: 27] Favorites ----------- Power Ion Engine Engine Ion Engine Power Core Light Nuclear Core Propulsion Aluminum Leg Treads Armored Treads Leg Aluminum Leg Utility Small Storage Unit Device Particle Charger Storage Small Storage Unit Protection Light Armor Plating Weapon Gauss Cannon Energy Gun Small Laser Ballistic Gun Heavy Assault Rifle Ballistic Cannon Gauss Cannon Launcher Grenade Launcher Build | -11 -10 -9 -8 ------- Run | Yrd Mat Mat Mat Slots Evolved 4 | . . 2 2 Power 1 | . . 1 . Propulsion 2 | . . . 2 Utility 1 | . . 1 . Weapon . | . . . . Parts Attached 39 | 6 1 11 21 Power 4 | 1 . 2 1 Engine 3 | 1 . 2 . Core 1 | . . . 1 Reactor . | . . . . Propulsion 11 | 2 . 2 7 Treads 4 | 2 . 2 . Leg 7 | . . . 7 Wheel . | . . . . Hover . | . . . . Flight . | . . . . Utility 10 | 1 1 2 6 Device 6 | . . 2 4 Storage 2 | 1 1 . . Processor . | . . . . Hackware . | . . . . Protection 2 | . . . 2 Artifact . | . . . . Weapon 14 | 2 . 5 7 Energy Gun 7 | 2 . 4 1 Energy Cannon . | . . . . Ballistic Gun 1 | . . . 1 Ballistic Cannon 4 | . . . 4 Launcher 2 | . . 1 1 Special Weapon . | . . . . Impact Weapon . | . . . . Slashing Weapon . | . . . . Piercing Weapon . | . . . . Special Melee Weapon . | . . . . Unidentified Prototypes . | . . . . Parts Lost 28 | . . 4 24 Power 4 | . . 1 3 Propulsion 8 | . . . 8 Utility 10 | . . 1 9 Weapon 6 | . . 2 4 Highest Loss Streak 9 | . . 3 9 To Critical Strikes . | . . . . Average Backups 4 | 3 6 5 4 Power . | . 1 . . Propulsion . | 1 2 2 . Utility . | . . . 1 Weapon 2 | 1 3 3 2 Tool/Special . | . . . . Unused Backups 9 | . . 4 5 Power . | . . . . Propulsion 3 | . . 3 . Utility 4 | . . 1 3 Weapon 2 | . . . 2 Tool/Special . | . . . . Average Slot Usage (%) 76 | . 98 93 61 Engine 9 | . 14 20 2 Treads 12 | . 28 22 3 Leg 10 | . . . 19 Device 11 | . . 13 14 Storage 9 | . 26 16 1 Protection 1 | . . . 2 Energy Gun 10 | . 28 15 1 Ballistic Cannon 7 | . . . 13 Launcher 1 | . . 5 1 Peak Build Rating 27 | 6 7 17 27 Average Rating 14 | 3 6 14 17 On Entrance 7 | . 6 7 17 Naked Turns 3 | . . . 3 Heaviest Build 25 | 13 15 23 25 Greatest Support 40 | 40 40 40 40 Greatest Overweight (x) 5 | 1 . . 5 Average Overweight (x) . | . . . 1 Largest Inventory Capacity 8 | 8 8 8 8 Average Capacity 6 | 6 8 8 5 Most Carried 8 | 5 8 8 8 Average Carried 4 | 3 6 5 4 Final Capacity 8 | 8 8 8 5 Final Carried 8 | 4 8 5 5 Class Distribution -------------------- 78% | Mutant 21% | Scavenger-Mutant Dominant Class ---------------- Mutant | -10/Materials Mutant | -9/Materials Mutant | -8/Materials Resources | -11 -10 -9 -8 ----------- Run | Yrd Mat Mat Mat Matter Collected 976 | 260 110 132 474 Remotely 236 | . . 80 156 Salvage Created 1118 | . 181 286 651 Parts 49 | . 5 11 33 Haulers Intercepted 1 | . . . 1 Recyclers Shooed 2 | . . 2 . Parts Field Recycled . | . . . . Retrieved Matter . | . . . . Parts Self-Destructed . | . . . . Prevented . | . . . . Kills | -11 -10 -9 -8 ------- Run | Yrd Mat Mat Mat Combat Hostiles Destroyed 31 | . 4 8 19 Guns 11 | . 4 4 3 Cannons 11 | . . . 11 AOE 9 | . . 4 5 Classes Destroyed 7 | . 1 1 5 Builder 1 | . . . 1 Hauler 1 | . . . 1 Mechanic 1 | . . 1 . Grunt 25 | . 4 8 13 Brawler 1 | . . . 1 Sentry 4 | . . . 4 Hunter 1 | . . . 1 Best Kill Streak 7 | . 2 6 7 Combat Bots Only 6 | . 2 5 6 Max Kills in Single Turn 2 | . 1 2 2 Gunslinging . | . . . . Exploded 2 | . . 2 2 Melee . | . . . . Uniques/NPCs Destroyed . | . . . . Combat | -11 -10 -9 -8 -------- Run | Yrd Mat Mat Mat Hostile Shots Fired 364 | . 36 76 252 Missed 95 | . 11 8 76 Hits 269 | . 25 68 176 Melee 1 | . . . 1 Projectile 268 | . 25 68 175 AOE 2 | . . . 2 Critical Strikes 3 | . . . 3 Damage Taken 4027 | . 293 837 2897 Core 660 | . 11 96 553 Absorbed by Shields . | . . . . Core Remaining (%) 90 | 100 95 76 . Volleys Fired 125 | . 19 40 66 Largest 2 | . 2 2 2 Hottest 95 | . 90 95 95 Shots Fired 200 | . 37 62 101 Gun 129 | . 37 57 35 Cannon 59 | . . . 59 Launcher 12 | . . 5 7 Special . | . . . . Kinetic 73 | . . . 73 Thermal 115 | . 37 57 21 Explosive 11 | . . 5 6 Electromagnetic 1 | . . . 1 Robot Hit Streak 13 | . 8 13 7 Robot Miss Streak 3 | . 2 3 3 Penetration Max . | . . . . Secondary Targets 1 | . 1 . . Max Gunslinging Chain 1 | . 1 . . Shots Hit Robots 124 | . 25 39 60 Core Hits 79 | . 10 26 43 Critical Kills . | . . . . Critical Parts Destroyed . | . . . . Critical Strikes 9 | . 2 . 7 Burn 3 | . 2 . 1 Blast 6 | . . . 6 Melee Attacks . | . . . . Impact . | . . . . Slashing . | . . . . Piercing . | . . . . Sneak Attacks . | . . . . Combat Hostiles . | . . . . Follow-up Attacks . | . . . . Damage Inflicted 3223 | . 315 1031 1877 Guns 1107 | . 306 456 345 Cannons 992 | . . . 992 Explosions 1086 | . . 570 516 Melee . | . . . . Ramming 38 | . 9 5 24 Kinetic 1109 | . . . 1109 Thermal 1057 | . 306 456 295 Explosive 1019 | . . 570 449 Electromagnetic . | . . . . Impact . | . . . . Slashing . | . . . . Piercing . | . . . . Highest Corruption . | . . . . Average Corruption . | . . . . Corruption Purged . | . . . . Corruption Blocked . | . . . . Overload Shots . | . . . . Overflow Damage 36 | . . 13 23 Projectiles 23 | . . . 23 Explosions 13 | . . 13 . Melee . | . . . . Knockbacks 10 | . . . 10 Impact . | . . . . Kinetic 10 | . . . 10 Secondary . | . . . . Self-Inflicted Damage 61 | . . 14 47 Shots 4 | . . 2 2 Rammed 9 | . 3 1 5 Targets Rammed 23 | . 3 1 19 Kicked 14 | . . . 14 Crushed . | . . . . Highest Temperature 449 | . 345 449 290 Average Temperature 166 | . 172 192 138 Received Heat Transfer 1806 | . 159 417 1230 Effects 11 | . . 7 4 Shutdowns 3 | . . 3 . Energy Bleed 3 | . . 2 1 Interference 3 | . . . 3 Damage (minor) 2 | . . 2 . Siege Activations . | . . . . Martial Activations . | . . . . Shielding Activations . | . . . . Robots Disrupted . | . . . . Combat Hostiles . | . . . . Robots Corrupted . | . . . . Combat Hostiles . | . . . . Parts Fried . | . . . . Impact Corruptions . | . . . . Robots Melted . | . . . . Combat Hostiles . | . . . . Parts Melted 7 | . 4 1 2 Heat Transferred 2595 | . 966 987 642 Parts Sabotaged . | . . . . Parts Stolen . | . . . . Parts Stripped . | . . . . Power Chain Reactions . | . . . . Alert | -11 -10 -9 -8 ------- Run | Yrd Mat Mat Mat Maximum Alert Level 1 | . . . 1 Low Security (%) 93 | 100 100 100 88 Level 1 6 | . . . 11 Level 2 . | . . . . Level 3 . | . . . . Level 4 . | . . . . Level 5 . | . . . . High Security . | . . . . Max Security . | . . . . Peak Influence 234 | . 67 122 234 Initial 33 | . . 10 33 Average 80 | . 16 49 119 Influence Increases 1034 | . 129 270 635 Destroy 0b10 Robot/C 620 | . 80 160 380 Destroy 0b10 Robot/NC 15 | . . 5 10 Destroy Leader 152 | . 20 40 92 Successful Hack 38 | . 29 9 . Disable Machine 75 | . . 15 60 Destroy Structure 104 | . . 26 78 Partial Spotted 15 | . . . 15 Lose Combat Pursuer 15 | . . 15 . Influence Decreases 1034 | . 104 214 716 Entered New Map 63 | . . 15 48 Time Decay 786 | . 104 184 498 Lost Part 185 | . . 15 170 Squads Dispatched 8 | . 3 3 2 Investigation 3 | . 1 2 . Extermination . | . . . . Reinforcement 5 | . 2 1 2 Assault . | . . . . Garrison . | . . . . Intercept . | . . . . Searches Triggered . | . . . . Construction Impeded . | . . . . Haulers Reinforced . | . . . . Active Scanning Responses . | . . . . Cargo Convoy Interrupts . | . . . . Stealth | -11 -10 -9 -8 --------- Run | Yrd Mat Mat Mat Distress Signals 6 | . 1 2 3 Communications Jammed . | . . . . Distress Signals . | . . . . Times Spotted 54 | . 8 14 32 Peak Tracking Total 8 | . 2 5 8 Tactical Retreats 1 | . . 1 . Traps | -11 -10 -9 -8 ------- Run | Yrd Mat Mat Mat Traps Triggered . | . . . . Indirectly . | . . . . Trap Hack Attempts . | . . . . Triggered . | . . . . Disarmed 8 | . 8 . . Reprogrammed . | . . . . Reused . | . . . . Traps Extracted . | . . . . Installed . | . . . . Triggered . | . . . . Machines | -11 -10 -9 -8 ---------- Run | Yrd Mat Mat Mat Machines Disabled 5 | . . 1 4 Max in Single Turn 2 | . . 1 2 Machines Repaired . | . . . . Machines Dismantled . | . . . . Machines Sabotaged . | . . . . Overloaded Fab Kills . | . . . . Hacking | -11 -10 -9 -8 --------- Run | Yrd Mat Mat Mat Machines Accessed 6 | . 3 3 . Terminals 6 | . 3 3 . Fabricators . | . . . . Repair Stations . | . . . . Recycling Units . | . . . . Scanalyzers . | . . . . Garrison Access . | . . . . Total Hacks 24 | . 17 7 . Successful 15 | . 10 5 . Failed 9 | . 7 2 . Catastrophic 2 | . 2 . . Database Lockouts . | . . . . Manual . | . . . . Terminals 24 | . 17 7 . Fabricators . | . . . . Repair Stations . | . . . . Recycling Units . | . . . . Scanalyzers . | . . . . Garrison Access . | . . . . Terminal Hacks 15 | . 10 5 . Record 7 | . 4 3 . Prototype ID Bank 1 | . 1 . . Branch Access Points 1 | . . 1 . Emergency Access Points 1 | . 1 . . Disarm Traps 3 | . 3 . . Zone Layout 2 | . 1 1 . Fabricator Hacks . | . . . . Repair Station Hacks . | . . . . Recycling Unit Hacks . | . . . . Scanalyzer . | . . . . Garrison Access Hacks . | . . . . Unauthorized Hacks . | . . . . Terminals . | . . . . Fabricators . | . . . . Repair Stations . | . . . . Recycling Units . | . . . . Scanalyzers . | . . . . Garrison Access . | . . . . Data Cores Recovered . | . . . . Used . | . . . . Hacking Detections 6 | . 3 3 . Full Trace Events 5 | . 3 2 . Feedback Events . | . . . . Feedback Blocked . | . . . . Robot Schematics Acquired . | . . . . Robots Built . | . . . . Authchips . | . . . . Time . | . . . . Total Robot Build Rating . | . . . . Part Schematics Acquired . | . . . . Parts Built . | . . . . Authchips . | . . . . Time . | . . . . Total Part Build Rating . | . . . . Parts Repaired . | . . . . Time . | . . . . Parts Recycled . | . . . . Recycled Matter . | . . . . Retrieved Matter . | . . . . Retrieved Components . | . . . . Parts Scanalyzed . | . . . . Part Schematics Acquired . | . . . . Parts Damaged . | . . . . Bothacking | -11 -10 -9 -8 ------------ Run | Yrd Mat Mat Mat Used RIF Installer . | . . . . Robots Hacked . | . . . . Non-combat . | . . . . Combat . | . . . . Robot Hacks Applied . | . . . . Relay Couplers Released . | . . . . Fabnet Peak Effective % . | . . . . Robots Rewired . | . . . . Allies Hacked . | . . . . Hacks Repelled . | . . . . Allies | -11 -10 -9 -8 -------- Run | Yrd Mat Mat Mat Total Allies . | . . . . Largest Group . | . . . . Highest-Rated Group . | . . . . Highest-Rated Ally . | . . . . Total Orders . | . . . . Ally Attacks . | . . . . Total Damage . | . . . . Kills . | . . . . Allies Corrupted . | . . . . Allies Melted 1 | . 1 . . Intel | -11 -10 -9 -8 ------- Run | Yrd Mat Mat Mat Active Infowar (turns) 529 | . . . 529 Terrain 529 | . . . 529 Robot Analysis Total . | . . . . Derelict Logs Recovered . | . . . . Drone Launches . | . . . . Drone Recoveries . | . . . . Exploration | -11 -10 -9 -8 ------------- Run | Yrd Mat Mat Mat Turns Passed 2421 | 71 461 545 1344 Spaces Moved 978 | 50 247 248 433 Core 127 | 22 . . 105 Treads 523 | 28 247 248 . Legs 328 | . . . 328 Wheels . | . . . . Hover . | . . . . Flight . | . . . . Fastest Speed 50 | 50 160 160 90 Average Speed 159 | 113 160 168 158 Slowest Speed 300 | 160 160 170 300 Overloaded Moves . | . . . . Propulsion Burnouts . | . . . . Robots Hopped . | . . . . Potential Cave-ins . | . . . . Cave-ins Triggered . | . . . . Exploration Rate (%) 30 | 4 51 25 42 Regions Visited 3 Branch Regions . Pre-discovered Areas . | . . . . Known Exits Taken . | . . . . Unknown Exits Taken 3 | 1 1 1 . Scrap Searched . | . . . . Spaces Dug . | . . . . Terrain Destroyed 110 | . . 30 80 Melee . | . . . . Projectile 30 | . . . 30 AOE 80 | . . 30 50 Terrain Rammed . | . . . . Walls Destroyed . | . . . . Machines Disabled . | . . . . Actions | -11 -10 -9 -8 --------- Run | Yrd Mat Mat Mat Total 1623 | 63 274 318 968 Wait 403 | . . . 403 Move 975 | 49 246 247 433 Hop . | . . . . Pick Up 42 | 8 5 10 19 Fast Attach 3 | 2 . . 1 Attach 30 | 4 1 8 17 Detach . | . . . . Swap 8 | . . 3 5 Drop 14 | . . 9 5 Fire 125 | . 19 40 66 Melee . | . . . . Ram 5 | . . . 5 Kick 14 | . . . 14 Crush 4 | . 3 1 . Escape Stasis . | . . . . Rewire . | . . . . Trap . | . . . . Miscellaneous . | . . . . Route ------- -11/Scrapyard -10/Materials (discovered 2 exits: *Mat / [*Min]) -9/Materials (discovered 2 exits: *Mat / Min) -8/Materials (discovered 1 exit: [*Fac]) History --------- Turn | Location | Event 10 | -11/Scrapyard | Discovered new exit (range 14) 72 | -11/Scrapyard | Entered Materials 73 | -10/Materials | Met a group of wandering Federalists 224 | -10/Materials | Discovered new exit (range 10) 300 | -10/Materials | Build established: Mutant 496 | -10/Materials | Discovered new exit (range 11) 533 | -10/Materials | Entered another Materials area 533 | -9/Materials | Evolved 2 slots: Power x1, Utility x1 834 | -9/Materials | Lost 3 parts (1p1u1w) 885 | -9/Materials | Identified exit to Mines 1008 | -9/Materials | Discovered new exit (range 16) 1078 | -9/Materials | Entered another Materials area 1078 | -8/Materials | Evolved 2 slots: Propulsion x2 1358 | -8/Materials | Lost 6 parts (1p3n2u) 1417 | -8/Materials | Core integrity fell below 50% 1426 | -8/Materials | Lost 5 parts (1p3u1w) 1649 | -8/Materials | Discovered new exit (range 12) 2201 | -8/Materials | Build established: Scavenger-Mutant 2417 | -8/Materials | Core integrity fell below 20% 2422 | -8/Materials | Destroyed by Y-45 Defender with Beam Rifle Last Messages --------------- 02059_ Slug penetrates Wall. 02061_ Slug penetrates Y-45 Defender. 02065_ Y-45 Defender destroyed. 02103_ Acquired Heat Sink. 02126_ R-06 Scavenger collects Hvy. Assault Rifle. 02135_ Acquired 34 matter. 02187_ K-01 Serf cleans the Fusion Modulator. 02378_ ALERT: Suspicious intruders detected, dispatching Specialist reinforcements to area. 02403_ Imp. Terrain Scanner destroyed. 02410_ Fusion Modulator explodes. 02410_ Gauss Cannon destroyed. 02410_ Fusion Modulator explodes. 02410_ Gauss Cannon destroyed. 02410_ Aluminum Leg destroyed. 02410_ Adv. Weight Redist. System destroyed. 02413_ Aluminum Leg destroyed. 02419_ Recoil Stabilizer destroyed. Map ----- +----------------------------------------------------+ | | | | | | | | | | | | | | | | | | | | | | | | | | | | | | | | | | | | | ??????????????????### ### #####??????##########??# | | ??????????????????# ##???### #?#? | | ????????????###??##;;;; ;; ##???## """ #??? | | ????????????#######; ; #??#?## """ #??? | | ????????????? ;; ; ##????# """ ! #??? | | ???????????## "T" Y; ;;;###??# #??? | | ??????????#?# ;; ; #### """ #??? | | ????????????? ??? #; @ ;;; + """ /#??? | | ??????????????????#; ; ; #### """ #??# | | ??????????????????#; [ ; ; #??# #? # | | ??????????? ?? ??## x ;## ##########+## + | | ?????????? ????????#####/;;;;;## # | | ????????????????H???? x # | | ?????????????????? ???? ################ ###### | | ????????????? ???????? ####?#?#######?# #????? | | ?????????????????#????#######???##!!!!##?# ##???# | | ????????????????????????????????#! !### #??#?? | | ????????????????#????##??#?##??#? ### ####?? | | ?????????? ###############???????## ## " #?? | | ????????? #########" % % ###?? | | ????????? " #?? | | ????????? #######"####### ###?? | | ????????????###+####### #############?######???? | | ?????????? ?? ?? ?????# # ##???????#???? | | ??????????????? ??????# # ! #?#??????????? | | ????????#????? ?"?????# + #?#?#??????##? | | ??????????????????????# # #????#???#??#? | | ????????#???? ???????## + ###??????????? | | ????????# ??""???????# # = ]] #????????????? | | ????????# ???Y?????#?# # ] #????????????? | | ??#?????# ????"?????## # #?#??#??????#? | | ??? ?#### ??? ??? ?#?# ############???????????? | +----------------------------------------------------+ Best States ------------- Heat Dissipation 31 Energy Generation 19 Energy Capacity 310 Matter Stores 400 Matter Capacity 400 Sight Range 16 Terrain Scan Range 16 Terrain Scan Density 10 Additional Mass Support 9 Armor Coverage 150 Evasion (%) 55 Recoil Reduction 4 Particle Charging 15 Item Schematics ----------------- None Robot Schematics ------------------ None Fabricated ------------ Nothing Repaired ---------- Nothing Alien Tech Used ----------------- None Achievements -------------- None Challenges ------------ None Game ------ Seed WardroneImpactFlakker Manual? 0 Play Time 00:18:48 Cumulative 23.8 hours Start 2025.07.05 @ 21:23:44 End 2025.07.05 @ 21:43:08 Sessions 1 Manual Loads 0 Difficulty Rogue Special Mode None Game No. 128 Rogue 128 Adventurer 0 Explorer 0 Win Type - Total 0 Types 0/0/0/0/0/0/0/0/0/0 Lore% 5 Gallery% 20 Achievement% 17 Wizard Run 0 Options --------- Layout 1 ASCII 0 Keyboard 0 Movement Arrows Keybinds 0 Fullscreen 1 Font 24/Cog Map View 50x35 Zoom Use 0% Tactical HUD 1 Map Filters NONE Filters NONE Steam 1 RUN: 0f91470c-bbf9-423b-953b-63a1f766862a